[Event "Titled Tuesday Blitz June 28 Early 2022"]
[White "Gubajdullin, Alexei"]
[Black "Jovic, Stanoje"]
[WhiteFideId "4141202"]
[BlackFideId "905020"]
[WhiteElo "2280"]
[BlackElo "2286"]
[Result "1/2-1/2"]
[Round "08"]
[TimeControl "180+1"]
[Date "2022.06.28"]
[WhiteClock "0:00:12"]
[BlackClock "0:00:10"]

1. c4 {[%clk 0:03:00]}  e5 {[%clk 0:02:59]} 2. Nc3 {[%clk 0:03:00]}  Nf6 {[%clk 0:02:58]} 3. Nf3 {[%clk 0:03:00]}  Nc6 {[%clk 0:02:58]} 4. e3 {[%clk 0:03:01]}  Bb4 {[%clk 0:02:57]} 5. Qc2 {[%clk 0:03:00]}  O-O {[%clk 0:02:54]} 6. Bd3 {[%clk 0:02:56]}  Re8 {[%clk 0:02:47]} 7. Nd5 {[%clk 0:02:50]}  Bf8 {[%clk 0:02:36]} 8. Nxf6+ {[%clk 0:02:49]}  Qxf6 {[%clk 0:02:35]} 9. Bxh7+ {[%clk 0:02:49]}  Kh8 {[%clk 0:02:32]} 10. Be4 {[%clk 0:02:50]}  Nb4 {[%clk 0:02:17]} 11. Qb1 {[%clk 0:02:48]}  c6 {[%clk 0:02:17]} 12. a3 {[%clk 0:01:45]}  d5 {[%clk 0:02:17]} 13. cxd5 {[%clk 0:01:45]}  cxd5 {[%clk 0:02:16]} 14. axb4 {[%clk 0:01:46]}  dxe4 {[%clk 0:02:16]} 15. Qxe4 {[%clk 0:01:46]}  Bf5 {[%clk 0:02:16]} 16. Qh4+ {[%clk 0:01:42]}  Qxh4 {[%clk 0:02:15]} 17. Nxh4 {[%clk 0:01:42]}  Bd3 {[%clk 0:02:14]} 18. g4 {[%clk 0:01:31]}  Bxb4 {[%clk 0:02:11]} 19. f3 {[%clk 0:01:30]}  a5 {[%clk 0:02:11]} 20. Kf2 {[%clk 0:01:30]}  a4 {[%clk 0:02:02]} 21. Ng2 {[%clk 0:01:30]}  Rec8 {[%clk 0:01:57]} 22. Ne1 {[%clk 0:01:29]}  Bb5 {[%clk 0:01:51]} 23. h4 {[%clk 0:01:23]}  Ra6 {[%clk 0:01:51]} 24. h5 {[%clk 0:01:18]}  Rac6 {[%clk 0:01:50]} 25. Ng2 {[%clk 0:01:16]}  Rc2 {[%clk 0:01:47]} 26. Kg3 {[%clk 0:01:15]}  Bxd2 {[%clk 0:01:42]} 27. Bxd2 {[%clk 0:01:14]}  Rxd2 {[%clk 0:01:41]} 28. Rhc1 {[%clk 0:01:11]}  Rxc1 {[%clk 0:01:30]} 29. Rxc1 {[%clk 0:01:11]}  Bc6 {[%clk 0:01:26]} 30. Nh4 {[%clk 0:01:06]}  Rxb2 {[%clk 0:01:23]} 31. Rd1 {[%clk 0:01:06]}  g5 {[%clk 0:01:09]} 32. hxg6 {[%clk 0:00:57]}  fxg6 {[%clk 0:01:09]} 33. Nxg6+ {[%clk 0:00:57]}  Kg7 {[%clk 0:01:08]} 34. Nxe5 {[%clk 0:00:57]}  a3 {[%clk 0:01:07]} 35. Nc4 {[%clk 0:00:50]}  Rb3 {[%clk 0:00:56]} 36. Ra1 {[%clk 0:00:49]}  b5 {[%clk 0:00:55]} 37. Nxa3 {[%clk 0:00:48]}  Rxe3 {[%clk 0:00:55]} 38. Nc2 {[%clk 0:00:46]}  Rxf3+ {[%clk 0:00:54]} 39. Kh4 {[%clk 0:00:46]}  Rf4 {[%clk 0:00:46]} 40. Ra7+ {[%clk 0:00:42]}  Kf8 {[%clk 0:00:44]} 41. Kg5 {[%clk 0:00:38]}  Re4 {[%clk 0:00:39]} 42. Kf5 {[%clk 0:00:34]}  Ra4 {[%clk 0:00:34]} 43. Rc7 {[%clk 0:00:30]}  Be4+ {[%clk 0:00:29]} 44. Kf6 {[%clk 0:00:31]}  Ra6+ {[%clk 0:00:28]} 45. Ke5 {[%clk 0:00:30]}  Bxc2 {[%clk 0:00:25]} 46. Rxc2 {[%clk 0:00:30]}  b4 {[%clk 0:00:24]} 47. Rc8+ {[%clk 0:00:27]}  Kg7 {[%clk 0:00:22]} 48. Rb8 {[%clk 0:00:27]}  Ra4 {[%clk 0:00:19]} 49. Kf5 {[%clk 0:00:27]}  Ra5+ {[%clk 0:00:19]} 50. Kf4 {[%clk 0:00:27]}  Ra4 {[%clk 0:00:18]} 51. Kg5 {[%clk 0:00:27]}  Ra5+ {[%clk 0:00:18]} 52. Kh4 {[%clk 0:00:27]}  Ra4 {[%clk 0:00:18]} 53. Kh5 {[%clk 0:00:27]}  Kf7 {[%clk 0:00:14]} 54. Kh6 {[%clk 0:00:24]}  Ra6+ {[%clk 0:00:12]} 55. Kh7 {[%clk 0:00:24]}  Ra1 {[%clk 0:00:12]} 56. Rb7+ {[%clk 0:00:15]}  Kf6 {[%clk 0:00:12]} 57. Rxb4 {[%clk 0:00:13]}  Rh1+ {[%clk 0:00:10]} 58. Kg8 {[%clk 0:00:13]}  Kg5 {[%clk 0:00:10]} 59. Kg7 {[%clk 0:00:13]}  Rh4 {[%clk 0:00:10]} 60. Rc4 {[%clk 0:00:12]}  Rxg4 {[%clk 0:00:10]} 61. Rxg4+ {[%clk 0:00:12]}  Kxg4 {[%clk 0:00:10]} 1/2-1/2


[Site "https://www.chess.com"]

[Event "Titled Tuesday Blitz June 28 Early 2022"]
[White "Gundam, Rohit"]
[Black "Horak, Martin"]
[WhiteFideId "75002809"]
[BlackFideId "367095"]
[WhiteElo "2342"]
[BlackElo "1997"]
[Result "0-1"]
[Round "08"]
[TimeControl "180+1"]
[Date "2022.06.28"]
[WhiteClock "0:00:04"]
[BlackClock "0:00:42"]

1. d4 {[%clk 0:03:00]}  g6 {[%clk 0:03:00]} 2. Nf3 {[%clk 0:03:01]}  Bg7 {[%clk 0:02:59]} 3. c4 {[%clk 0:03:02]}  Nf6 {[%clk 0:02:59]} 4. Nc3 {[%clk 0:03:02]}  d5 {[%clk 0:02:59]} 5. h3 {[%clk 0:03:01]}  O-O {[%clk 0:02:59]} 6. cxd5 {[%clk 0:03:00]}  Nxd5 {[%clk 0:02:58]} 7. e4 {[%clk 0:03:01]}  Nxc3 {[%clk 0:02:59]} 8. bxc3 {[%clk 0:03:01]}  c5 {[%clk 0:02:59]} 9. Be2 {[%clk 0:02:57]}  Nc6 {[%clk 0:02:58]} 10. Be3 {[%clk 0:02:57]}  cxd4 {[%clk 0:02:51]} 11. cxd4 {[%clk 0:02:58]}  Qa5+ {[%clk 0:02:51]} 12. Bd2 {[%clk 0:02:58]}  Qa3 {[%clk 0:02:51]} 13. d5 {[%clk 0:02:58]}  Ne5 {[%clk 0:02:44]} 14. O-O {[%clk 0:02:58]}  Nxf3+ {[%clk 0:02:40]} 15. Bxf3 {[%clk 0:02:57]}  e6 {[%clk 0:02:40]} 16. Rb1 {[%clk 0:02:22]}  Qxa2 {[%clk 0:02:38]} 17. Bb4 {[%clk 0:00:49]}  Re8 {[%clk 0:02:30]} 18. d6 {[%clk 0:00:19]}  Bd7 {[%clk 0:02:30]} 19. Bc5 {[%clk 0:00:14]}  Bc6 {[%clk 0:02:25]} 20. e5 {[%clk 0:00:13]}  Bxe5 {[%clk 0:02:00]} 21. Bxc6 {[%clk 0:00:12]}  bxc6 {[%clk 0:02:01]} 22. d7 {[%clk 0:00:13]}  Red8 {[%clk 0:01:53]} 23. Be7 {[%clk 0:00:13]}  Qd5 {[%clk 0:01:50]} 24. Bxd8 {[%clk 0:00:12]}  Rxd8 {[%clk 0:01:49]} 25. Rb7 {[%clk 0:00:12]}  Bd4 {[%clk 0:01:36]} 26. Qf3 {[%clk 0:00:06]}  Rxd7 {[%clk 0:01:32]} 27. Qxd5 {[%clk 0:00:03]}  Rxd5 {[%clk 0:01:33]} 28. Rb8+ {[%clk 0:00:03]}  Kg7 {[%clk 0:01:32]} 29. Rc1 {[%clk 0:00:04]}  Bb6 {[%clk 0:01:14]} 30. Rc8 {[%clk 0:00:02]}  c5 {[%clk 0:01:14]} 31. Rc2 {[%clk 0:00:02]}  h5 {[%clk 0:01:11]} 32. g3 {[%clk 0:00:03]}  h4 {[%clk 0:01:10]} 33. Kg2 {[%clk 0:00:04]}  Rd4 {[%clk 0:01:04]} 34. gxh4 {[%clk 0:00:03]}  Rxh4 {[%clk 0:01:04]} 35. Rb8 {[%clk 0:00:03]}  Rh5 {[%clk 0:00:58]} 36. Rb7 {[%clk 0:00:03]}  Rg5+ {[%clk 0:00:59]} 37. Kf3 {[%clk 0:00:03]}  Rf5+ {[%clk 0:00:59]} 38. Kg2 {[%clk 0:00:03]}  Kf6 {[%clk 0:00:57]} 39. Rd2 {[%clk 0:00:03]}  Rd5 {[%clk 0:00:57]} 40. Rxd5 {[%clk 0:00:03]}  exd5 {[%clk 0:00:57]} 41. f4 {[%clk 0:00:04]}  d4 {[%clk 0:00:43]} 42. Kf3 {[%clk 0:00:05]}  c4 {[%clk 0:00:43]} 43. Ke4 {[%clk 0:00:05]}  d3 {[%clk 0:00:43]} 44. Rd7 {[%clk 0:00:05]}  Ke6 {[%clk 0:00:42]} 45. Rd5 {[%clk 0:00:04]}  f5+ {[%clk 0:00:42]} 0-1


[Site "https://www.chess.com"]

[Event "Titled Tuesday Blitz June 28 Early 2022"]
[White "Hambleton, Aman"]
[Black "Soham Kamotra"]
[WhiteFideId "2606577"]
[BlackFideId "46647490"]
[WhiteElo "2552"]
[BlackElo "2082"]
[Result "1-0"]
[Round "08"]
[TimeControl "180+1"]
[Date "2022.06.28"]
[WhiteClock "0:00:05"]
[BlackClock "0:00:04"]

1. d4 {[%clk 0:03:00]}  Nf6 {[%clk 0:02:59]} 2. c4 {[%clk 0:02:59]}  g6 {[%clk 0:03:00]} 3. Nc3 {[%clk 0:02:59]}  d5 {[%clk 0:03:00]} 4. cxd5 {[%clk 0:02:59]}  Nxd5 {[%clk 0:03:01]} 5. Bd2 {[%clk 0:02:59]}  Bg7 {[%clk 0:02:59]} 6. e4 {[%clk 0:02:59]}  Nxc3 {[%clk 0:03:00]} 7. Bxc3 {[%clk 0:03:00]}  O-O {[%clk 0:02:57]} 8. Qd2 {[%clk 0:03:00]}  c5 {[%clk 0:02:52]} 9. d5 {[%clk 0:03:00]}  Bxc3 {[%clk 0:02:48]} 10. bxc3 {[%clk 0:02:57]}  Qd6 {[%clk 0:02:47]} 11. Nf3 {[%clk 0:01:59]}  Bg4 {[%clk 0:02:34]} 12. Be2 {[%clk 0:01:23]}  Nd7 {[%clk 0:02:33]} 13. Rb1 {[%clk 0:01:16]}  c4 {[%clk 0:02:14]} 14. O-O {[%clk 0:01:03]}  Rac8 {[%clk 0:01:04]} 15. Rxb7 {[%clk 0:00:21]}  Nc5 {[%clk 0:01:03]} 16. Rxa7 {[%clk 0:00:20]}  Nxe4 {[%clk 0:01:03]} 17. Qd4 {[%clk 0:00:12]}  Bxf3 {[%clk 0:00:59]} 18. Bxf3 {[%clk 0:00:11]}  Nf6 {[%clk 0:00:59]} 19. Re1 {[%clk 0:00:09]}  Rfe8 {[%clk 0:00:59]} 20. g3 {[%clk 0:00:04]}  Rc5 {[%clk 0:00:56]} 21. Ra4 {[%clk 0:00:02]}  Rec8 {[%clk 0:00:52]} 22. Kg2 {[%clk 0:00:02]}  Nxd5 {[%clk 0:00:50]} 23. Ra7 {[%clk 0:00:01]}  e6 {[%clk 0:00:19]} 24. Rb1 {[%clk 0:00:02]}  R5c7 {[%clk 0:00:16]} 25. Bxd5 {[%clk 0:00:01]}  Qxd5+ {[%clk 0:00:13]} 26. Qxd5 {[%clk 0:00:01]}  exd5 {[%clk 0:00:14]} 27. Ra5 {[%clk 0:00:01]}  Rd7 {[%clk 0:00:13]} 28. Rd1 {[%clk 0:00:01]}  Rcd8 {[%clk 0:00:11]} 29. Kf3 {[%clk 0:00:02]}  Kg7 {[%clk 0:00:10]} 30. Ke3 {[%clk 0:00:03]}  Kf6 {[%clk 0:00:10]} 31. Kd4 {[%clk 0:00:03]}  Ke6 {[%clk 0:00:10]} 32. Re1+ {[%clk 0:00:03]}  Kf6 {[%clk 0:00:10]} 33. Re5 {[%clk 0:00:03]}  Rb8 {[%clk 0:00:09]} 34. Re2 {[%clk 0:00:03]}  Rbd8 {[%clk 0:00:07]} 35. a4 {[%clk 0:00:03]}  Rd6 {[%clk 0:00:06]} 36. h4 {[%clk 0:00:03]}  Re6 {[%clk 0:00:07]} 37. Re3 {[%clk 0:00:03]}  Red6 {[%clk 0:00:02]} 38. Re5 {[%clk 0:00:03]}  Rb6 {[%clk 0:00:02]} 39. Rexd5 {[%clk 0:00:02]}  Rxd5+ {[%clk 0:00:02]} 40. Rxd5 {[%clk 0:00:03]}  Rb2 {[%clk 0:00:03]} 41. Kxc4 {[%clk 0:00:03]}  Rxf2 {[%clk 0:00:03]} 42. Kb3 {[%clk 0:00:03]}  Rf1 {[%clk 0:00:02]} 43. Kb2 {[%clk 0:00:03]}  Rf2+ {[%clk 0:00:02]} 44. Kb3 {[%clk 0:00:03]}  Rf1 {[%clk 0:00:02]} 45. a5 {[%clk 0:00:03]}  Ra1 {[%clk 0:00:02]} 46. Kb2 {[%clk 0:00:04]}  Ra4 {[%clk 0:00:01]} 47. Kb3 {[%clk 0:00:04]}  Ra1 {[%clk 0:00:02]} 48. g4 {[%clk 0:00:04]}  h6 {[%clk 0:00:02]} 49. g5+ {[%clk 0:00:04]}  hxg5 {[%clk 0:00:03]} 50. hxg5+ {[%clk 0:00:05]}  Ke6 {[%clk 0:00:04]} 51. c4 {[%clk 0:00:05]}  Rb1+ {[%clk 0:00:04]} 52. Ka4 {[%clk 0:00:05]}  Rc1 {[%clk 0:00:04]} 53. Kb5 {[%clk 0:00:05]}  Rb1+ {[%clk 0:00:05]} 54. Kc6 {[%clk 0:00:05]}  Rc1 {[%clk 0:00:05]} 55. Rc5 {[%clk 0:00:05]}  Ra1 {[%clk 0:00:05]} 56. Kb7 {[%clk 0:00:04]}  Rb1+ {[%clk 0:00:05]} 57. Rb5 {[%clk 0:00:04]}  Rc1 {[%clk 0:00:04]} 58. a6 {[%clk 0:00:05]}  Ra1 {[%clk 0:00:04]} 59. a7 {[%clk 0:00:05]} 1-0


[Site "https://www.chess.com"]

[Event "Titled Tuesday Blitz June 28 Early 2022"]
[White "Hamley, Ryan"]
[Black "Kohler, Aran"]
[WhiteFideId "30959497"]
[BlackFideId "1002856"]
[WhiteElo "2479"]
[BlackElo "2269"]
[Result "1/2-1/2"]
[Round "08"]
[TimeControl "180+1"]
[Date "2022.06.28"]
[WhiteClock "0:01:36"]
[BlackClock "0:02:46"]

1. d4 {[%clk 0:02:42]}  Nf6 {[%clk 0:02:58]} 2. c4 {[%clk 0:02:42]}  e6 {[%clk 0:02:58]} 3. Nf3 {[%clk 0:02:42]}  d5 {[%clk 0:02:58]} 4. g3 {[%clk 0:02:41]}  c6 {[%clk 0:02:59]} 5. Bg2 {[%clk 0:02:41]}  Nbd7 {[%clk 0:02:59]} 6. O-O {[%clk 0:02:41]}  dxc4 {[%clk 0:02:59]} 7. a4 {[%clk 0:02:35]}  a5 {[%clk 0:02:58]} 8. Qc2 {[%clk 0:02:33]}  Nb6 {[%clk 0:02:56]} 9. Rd1 {[%clk 0:02:33]}  Nfd5 {[%clk 0:02:52]} 10. e4 {[%clk 0:02:22]}  Nb4 {[%clk 0:02:52]} 11. Qe2 {[%clk 0:02:23]}  Be7 {[%clk 0:02:49]} 12. Be3 {[%clk 0:02:14]}  O-O {[%clk 0:02:48]} 13. Nbd2 {[%clk 0:02:11]}  Nc2 {[%clk 0:02:46]} 14. Ra2 {[%clk 0:02:03]}  Nb4 {[%clk 0:02:46]} 15. Raa1 {[%clk 0:02:01]}  Nc2 {[%clk 0:02:46]} 16. Ra2 {[%clk 0:01:59]}  Nb4 {[%clk 0:02:46]} 17. Ra3 {[%clk 0:01:40]}  Nc2 {[%clk 0:02:46]} 18. Ra2 {[%clk 0:01:36]} 1/2-1/2


[Site "https://www.chess.com"]

[Event "Titled Tuesday Blitz June 28 Early 2022"]
[White "Dronavalli, Harika"]
[Black "Jeet, Jain"]
[WhiteFideId "5015197"]
[BlackFideId "5073022"]
[WhiteElo "2382"]
[BlackElo "2055"]
[Result "1/2-1/2"]
[Round "08"]
[TimeControl "180+1"]
[Date "2022.06.28"]
[WhiteClock "0:00:18"]
[BlackClock "0:00:28"]

1. d4 {[%clk 0:02:57]}  d5 {[%clk 0:02:57]} 2. Nf3 {[%clk 0:02:56]}  Nf6 {[%clk 0:02:53]} 3. c4 {[%clk 0:02:56]}  c6 {[%clk 0:02:54]} 4. g3 {[%clk 0:02:51]}  Bf5 {[%clk 0:02:51]} 5. Nbd2 {[%clk 0:02:45]}  e6 {[%clk 0:02:51]} 6. Bg2 {[%clk 0:02:46]}  h6 {[%clk 0:02:50]} 7. O-O {[%clk 0:02:45]}  Nbd7 {[%clk 0:02:50]} 8. b3 {[%clk 0:02:46]}  Be7 {[%clk 0:02:50]} 9. Bb2 {[%clk 0:02:46]}  O-O {[%clk 0:02:51]} 10. Re1 {[%clk 0:02:44]}  a6 {[%clk 0:02:50]} 11. Ne5 {[%clk 0:02:34]}  Bh7 {[%clk 0:02:44]} 12. e4 {[%clk 0:02:03]}  dxe4 {[%clk 0:02:34]} 13. Nxe4 {[%clk 0:01:59]}  Nxe4 {[%clk 0:02:27]} 14. Bxe4 {[%clk 0:01:59]}  Bxe4 {[%clk 0:02:27]} 15. Rxe4 {[%clk 0:01:59]}  Nxe5 {[%clk 0:02:27]} 16. dxe5 {[%clk 0:01:51]}  Qxd1+ {[%clk 0:02:22]} 17. Rxd1 {[%clk 0:01:51]}  Rfd8 {[%clk 0:02:23]} 18. Red4 {[%clk 0:01:47]}  Rxd4 {[%clk 0:02:23]} 19. Rxd4 {[%clk 0:01:48]}  Rd8 {[%clk 0:02:23]} 20. Rxd8+ {[%clk 0:01:37]}  Bxd8 {[%clk 0:02:24]} 21. f4 {[%clk 0:01:30]}  g5 {[%clk 0:02:21]} 22. Kf2 {[%clk 0:01:29]}  gxf4 {[%clk 0:02:17]} 23. gxf4 {[%clk 0:01:30]}  Kg7 {[%clk 0:02:18]} 24. Kf3 {[%clk 0:01:30]}  Kg6 {[%clk 0:02:17]} 25. Ke4 {[%clk 0:01:31]}  Kh5 {[%clk 0:02:17]} 26. f5 {[%clk 0:01:23]}  Kg4 {[%clk 0:02:15]} 27. f6 {[%clk 0:01:03]}  Bb6 {[%clk 0:01:56]} 28. Bc1 {[%clk 0:00:42]}  h5 {[%clk 0:01:56]} 29. Bf4 {[%clk 0:00:23]}  Bg1 {[%clk 0:01:52]} 30. b4 {[%clk 0:00:18]}  Kh3 {[%clk 0:01:51]} 31. Kf3 {[%clk 0:00:15]}  Bxh2 {[%clk 0:01:48]} 32. Bxh2 {[%clk 0:00:16]}  Kxh2 {[%clk 0:01:49]} 33. Kf2 {[%clk 0:00:15]}  h4 {[%clk 0:01:44]} 34. c5 {[%clk 0:00:15]}  Kh3 {[%clk 0:01:38]} 35. Kf3 {[%clk 0:00:16]}  Kh2 {[%clk 0:01:35]} 36. Kf2 {[%clk 0:00:16]}  Kh1 {[%clk 0:01:28]} 37. Kf1 {[%clk 0:00:16]}  h3 {[%clk 0:01:24]} 38. Kf2 {[%clk 0:00:16]}  Kh2 {[%clk 0:01:23]} 39. a3 {[%clk 0:00:17]}  Kh1 {[%clk 0:01:15]} 40. Kf1 {[%clk 0:00:17]}  Kh2 {[%clk 0:01:11]} 41. Kf2 {[%clk 0:00:18]}  Kh1 {[%clk 0:00:40]} 42. Kf1 {[%clk 0:00:18]}  Kh2 {[%clk 0:00:28]} 43. Kf2 {[%clk 0:00:18]} 1/2-1/2


[Site "https://www.chess.com"]

[Event "Titled Tuesday Blitz June 28 Early 2022"]
[White "Hoffmann, Asa"]
[Black "Ouellet, Maili-Jade"]
[WhiteFideId "2001470"]
[BlackFideId "2620472"]
[WhiteElo "2117"]
[BlackElo "1899"]
[Result "0-1"]
[Round "08"]
[TimeControl "180+1"]
[Date "2022.06.28"]
[WhiteClock "0:00:34"]
[BlackClock "0:00:09"]

1. d4 {[%clk 0:02:59]}  d5 {[%clk 0:03:00]} 2. Bg5 {[%clk 0:02:54]}  h6 {[%clk 0:02:59]} 3. Bh4 {[%clk 0:02:52]}  c6 {[%clk 0:03:00]} 4. e3 {[%clk 0:02:51]}  Nd7 {[%clk 0:02:56]} 5. c4 {[%clk 0:02:50]}  Ngf6 {[%clk 0:02:55]} 6. Nc3 {[%clk 0:02:50]}  e6 {[%clk 0:02:55]} 7. f4 {[%clk 0:02:49]}  Be7 {[%clk 0:02:54]} 8. Nf3 {[%clk 0:02:49]}  O-O {[%clk 0:02:54]} 9. Bd3 {[%clk 0:02:49]}  a6 {[%clk 0:02:40]} 10. O-O {[%clk 0:02:43]}  b5 {[%clk 0:02:37]} 11. cxb5 {[%clk 0:02:38]}  cxb5 {[%clk 0:02:30]} 12. Ne5 {[%clk 0:02:36]}  Bb7 {[%clk 0:02:15]} 13. Rc1 {[%clk 0:02:35]}  Ne4 {[%clk 0:02:09]} 14. Bxe7 {[%clk 0:02:32]}  Qxe7 {[%clk 0:02:08]} 15. Bxe4 {[%clk 0:02:31]}  dxe4 {[%clk 0:02:07]} 16. Qh5 {[%clk 0:02:21]}  Nf6 {[%clk 0:02:04]} 17. Qh4 {[%clk 0:02:21]}  Nd5 {[%clk 0:02:02]} 18. Qg3 {[%clk 0:02:12]}  Nb4 {[%clk 0:01:50]} 19. f5 {[%clk 0:02:06]}  exf5 {[%clk 0:01:47]} 20. Rxf5 {[%clk 0:02:05]}  Nd3 {[%clk 0:01:44]} 21. Rcf1 {[%clk 0:02:05]}  Nxe5 {[%clk 0:01:37]} 22. Rxe5 {[%clk 0:02:00]}  Qb4 {[%clk 0:01:36]} 23. Nxe4 {[%clk 0:01:56]}  Bxe4 {[%clk 0:01:34]} 24. Rxe4 {[%clk 0:01:55]}  Qxb2 {[%clk 0:01:34]} 25. Rg4 {[%clk 0:01:54]}  g6 {[%clk 0:01:23]} 26. h4 {[%clk 0:01:54]}  Kh7 {[%clk 0:00:53]} 27. Rf6 {[%clk 0:01:51]}  h5 {[%clk 0:00:41]} 28. Rgxg6 {[%clk 0:01:42]}  Qb1+ {[%clk 0:00:40]} 29. Kh2 {[%clk 0:01:39]}  fxg6 {[%clk 0:00:36]} 30. Qc7+ {[%clk 0:01:12]}  Kg8 {[%clk 0:00:30]} 31. Re6 {[%clk 0:01:05]}  Qf5 {[%clk 0:00:25]} 32. Qd6 {[%clk 0:00:58]}  Kg7 {[%clk 0:00:18]} 33. Qd7+ {[%clk 0:00:55]}  Rf7 {[%clk 0:00:17]} 34. Qd6 {[%clk 0:00:47]}  Raf8 {[%clk 0:00:17]} 35. d5 {[%clk 0:00:45]}  Rf6 {[%clk 0:00:16]} 36. Re7+ {[%clk 0:00:42]}  R8f7 {[%clk 0:00:16]} 37. Re6 {[%clk 0:00:42]}  Qg4 {[%clk 0:00:11]} 38. Rxf6 {[%clk 0:00:35]}  Qxh4+ {[%clk 0:00:10]} 39. Kg1 {[%clk 0:00:34]}  Qxf6 {[%clk 0:00:09]} 0-1


[Site "https://www.chess.com"]

[Event "Titled Tuesday Blitz June 28 Early 2022"]
[White "Hovhannisyan, Robert"]
[Black "Ladopoulos, Dimitrios"]
[WhiteFideId "13302507"]
[BlackFideId "4239580"]
[WhiteElo "2570"]
[BlackElo "2195"]
[Result "1-0"]
[Round "08"]
[TimeControl "180+1"]
[Date "2022.06.28"]
[WhiteClock "0:01:42"]
[BlackClock "0:01:48"]

1. e4 {[%clk 0:03:00]}  e6 {[%clk 0:02:55]} 2. d4 {[%clk 0:03:01]}  d5 {[%clk 0:02:55]} 3. Nc3 {[%clk 0:03:01]}  Nf6 {[%clk 0:02:55]} 4. Bg5 {[%clk 0:03:01]}  dxe4 {[%clk 0:02:52]} 5. Nxe4 {[%clk 0:03:01]}  Be7 {[%clk 0:02:53]} 6. Nxf6+ {[%clk 0:03:01]}  gxf6 {[%clk 0:02:54]} 7. Be3 {[%clk 0:03:00]}  Nd7 {[%clk 0:02:46]} 8. g3 {[%clk 0:02:55]}  c6 {[%clk 0:02:45]} 9. Nf3 {[%clk 0:02:48]}  b6 {[%clk 0:02:43]} 10. Bg2 {[%clk 0:02:46]}  Bb7 {[%clk 0:02:42]} 11. O-O {[%clk 0:02:46]}  f5 {[%clk 0:02:41]} 12. c4 {[%clk 0:02:44]}  Nf6 {[%clk 0:02:41]} 13. Ne5 {[%clk 0:02:37]}  Qc7 {[%clk 0:02:38]} 14. Bf4 {[%clk 0:02:30]}  Bd6 {[%clk 0:02:07]} 15. Qe2 {[%clk 0:02:27]}  O-O-O {[%clk 0:02:06]} 16. c5 {[%clk 0:02:22]}  bxc5 {[%clk 0:02:03]} 17. dxc5 {[%clk 0:02:22]}  Bxc5 {[%clk 0:02:03]} 18. Nxc6 {[%clk 0:02:11]}  Rd6 {[%clk 0:01:50]} 19. Bxd6 {[%clk 0:02:04]}  Qxd6 {[%clk 0:01:51]} 20. Rfd1 {[%clk 0:01:42]}  Qc7 {[%clk 0:01:48]} 1-0


[Site "https://www.chess.com"]

[Event "Titled Tuesday Blitz June 28 Early 2022"]
[White "Ianov, Viktor"]
[Black "Bolanos, Fernando"]
[WhiteFideId "14102730"]
[BlackFideId "3304094"]
[WhiteElo "2152"]
[BlackElo "2048"]
[Result "1-0"]
[Round "08"]
[TimeControl "180+1"]
[Date "2022.06.28"]
[WhiteClock "0:01:41"]
[BlackClock "0:00:56"]

1. Nf3 {[%clk 0:03:00]}  d5 {[%clk 0:03:00]} 2. g3 {[%clk 0:03:00]}  Nf6 {[%clk 0:03:00]} 3. Bg2 {[%clk 0:03:00]}  Bf5 {[%clk 0:02:58]} 4. O-O {[%clk 0:03:00]}  c6 {[%clk 0:02:59]} 5. d3 {[%clk 0:03:00]}  e6 {[%clk 0:02:59]} 6. c4 {[%clk 0:03:01]}  Be7 {[%clk 0:02:59]} 7. Be3 {[%clk 0:03:00]}  O-O {[%clk 0:02:59]} 8. Qb3 {[%clk 0:03:00]}  b6 {[%clk 0:02:55]} 9. Nc3 {[%clk 0:03:00]}  Nbd7 {[%clk 0:02:53]} 10. Nd4 {[%clk 0:03:00]}  dxc4 {[%clk 0:02:17]} 11. dxc4 {[%clk 0:02:53]}  Nc5 {[%clk 0:02:16]} 12. Qd1 {[%clk 0:02:51]}  Nfe4 {[%clk 0:01:58]} 13. Nxc6 {[%clk 0:02:48]}  Qc7 {[%clk 0:01:51]} 14. Nxe7+ {[%clk 0:02:47]}  Qxe7 {[%clk 0:01:52]} 15. Bxc5 {[%clk 0:02:46]}  Nxc5 {[%clk 0:01:47]} 16. Bxa8 {[%clk 0:02:43]}  Rxa8 {[%clk 0:01:48]} 17. Qd2 {[%clk 0:02:37]}  Qb7 {[%clk 0:01:45]} 18. f3 {[%clk 0:02:34]}  Nd7 {[%clk 0:01:34]} 19. Rfd1 {[%clk 0:02:33]}  Nf6 {[%clk 0:01:32]} 20. e4 {[%clk 0:02:24]}  Bg6 {[%clk 0:01:31]} 21. b3 {[%clk 0:02:22]}  h5 {[%clk 0:01:30]} 22. h4 {[%clk 0:02:20]}  Qc7 {[%clk 0:01:30]} 23. Kg2 {[%clk 0:02:15]}  b5 {[%clk 0:01:25]} 24. Nxb5 {[%clk 0:02:12]}  Qc6 {[%clk 0:01:12]} 25. Qd6 {[%clk 0:02:10]}  Qb7 {[%clk 0:01:12]} 26. Qc7 {[%clk 0:02:09]}  Qa6 {[%clk 0:01:11]} 27. Rd6 {[%clk 0:02:06]}  Qc8 {[%clk 0:01:06]} 28. Qxc8+ {[%clk 0:02:05]}  Rxc8 {[%clk 0:01:07]} 29. Nxa7 {[%clk 0:02:03]}  Ra8 {[%clk 0:01:06]} 30. Nb5 {[%clk 0:02:02]}  Kf8 {[%clk 0:01:06]} 31. a4 {[%clk 0:02:01]}  Ke7 {[%clk 0:01:06]} 32. Rad1 {[%clk 0:01:57]}  Bh7 {[%clk 0:01:02]} 33. e5 {[%clk 0:01:57]}  Ne8 {[%clk 0:01:01]} 34. Rd7+ {[%clk 0:01:57]}  Kf8 {[%clk 0:01:01]} 35. Rd8 {[%clk 0:01:57]}  Rxd8 {[%clk 0:01:02]} 36. Rxd8 {[%clk 0:01:55]}  Ke7 {[%clk 0:01:03]} 37. Ra8 {[%clk 0:01:54]}  Bc2 {[%clk 0:01:02]} 38. Ra7+ {[%clk 0:01:52]}  Kd8 {[%clk 0:01:02]} 39. Nd4 {[%clk 0:01:52]}  Bd1 {[%clk 0:01:02]} 40. Rxf7 {[%clk 0:01:50]}  Kc8 {[%clk 0:00:58]} 41. a5 {[%clk 0:01:49]}  Nc7 {[%clk 0:00:58]} 42. Rxg7 {[%clk 0:01:48]}  Na6 {[%clk 0:00:59]} 43. g4 {[%clk 0:01:42]}  hxg4 {[%clk 0:00:58]} 44. fxg4 {[%clk 0:01:42]}  Nc5 {[%clk 0:00:58]} 45. h5 {[%clk 0:01:42]}  Nd3 {[%clk 0:00:56]} 46. h6 {[%clk 0:01:41]} 1-0


[Site "https://www.chess.com"]